[Event "Titled Tuesday Blitz May 31 Late 2022"]
[White "Demchenko, Anton"]
[Black "Harvey, Marcus R"]
[WhiteFideId "4160258"]
[BlackFideId "400092"]
[WhiteElo "2539"]
[BlackElo "2485"]
[Result "0-1"]
[Round "03"]
[TimeControl "180+1"]
[Date "2022.05.31"]
[WhiteClock "0:00:03"]
[BlackClock "0:00:11"]

1. e4 {[%clk 0:03:00]}  e6 {[%clk 0:03:00]} 2. d4 {[%clk 0:03:00]}  d5 {[%clk 0:03:00]} 3. Nc3 {[%clk 0:03:00]}  Nf6 {[%clk 0:03:00]} 4. Bg5 {[%clk 0:02:57]}  dxe4 {[%clk 0:03:00]} 5. Nxe4 {[%clk 0:02:58]}  Be7 {[%clk 0:03:00]} 6. Nxf6+ {[%clk 0:02:57]}  Bxf6 {[%clk 0:03:00]} 7. Bxf6 {[%clk 0:02:58]}  Qxf6 {[%clk 0:03:00]} 8. Nf3 {[%clk 0:02:59]}  O-O {[%clk 0:03:00]} 9. Qd3 {[%clk 0:02:58]}  Rd8 {[%clk 0:02:58]} 10. O-O-O {[%clk 0:02:58]}  Nc6 {[%clk 0:02:57]} 11. Rd2 {[%clk 0:02:54]}  b6 {[%clk 0:02:34]} 12. c3 {[%clk 0:02:36]}  Bb7 {[%clk 0:02:32]} 13. Qe3 {[%clk 0:02:36]}  Ne7 {[%clk 0:02:28]} 14. Qe5 {[%clk 0:01:44]}  Bxf3 {[%clk 0:02:27]} 15. Qxf6 {[%clk 0:01:45]}  gxf6 {[%clk 0:02:27]} 16. gxf3 {[%clk 0:01:45]}  Nd5 {[%clk 0:02:14]} 17. Bc4 {[%clk 0:01:38]}  Kh8 {[%clk 0:02:07]} 18. Rg1 {[%clk 0:01:37]}  c6 {[%clk 0:01:57]} 19. Rg3 {[%clk 0:01:34]}  Ne7 {[%clk 0:01:44]} 20. Kc2 {[%clk 0:01:26]}  Rg8 {[%clk 0:01:37]} 21. Bd3 {[%clk 0:01:24]}  f5 {[%clk 0:01:36]} 22. c4 {[%clk 0:01:18]}  Rad8 {[%clk 0:01:35]} 23. Kc3 {[%clk 0:01:18]}  Ng6 {[%clk 0:01:24]} 24. Bc2 {[%clk 0:00:48]}  Nf4 {[%clk 0:01:19]} 25. Ba4 {[%clk 0:00:46]}  Rc8 {[%clk 0:01:01]} 26. b4 {[%clk 0:00:42]}  Rg6 {[%clk 0:00:53]} 27. Kc2 {[%clk 0:00:03]}  Rh6 {[%clk 0:00:48]} 28. Bb3 {[%clk 0:00:03]}  Rxh2 {[%clk 0:00:47]} 29. a4 {[%clk 0:00:04]}  h5 {[%clk 0:00:42]} 30. a5 {[%clk 0:00:03]}  h4 {[%clk 0:00:42]} 31. Rg5 {[%clk 0:00:03]}  Rg2 {[%clk 0:00:41]} 32. Rxg2 {[%clk 0:00:02]}  Nxg2 {[%clk 0:00:42]} 33. Rd1 {[%clk 0:00:03]}  h3 {[%clk 0:00:39]} 34. Rh1 {[%clk 0:00:03]}  Nf4 {[%clk 0:00:39]} 35. Kd2 {[%clk 0:00:03]}  f6 {[%clk 0:00:38]} 36. Ke3 {[%clk 0:00:04]}  e5 {[%clk 0:00:39]} 37. dxe5 {[%clk 0:00:03]}  fxe5 {[%clk 0:00:40]} 38. a6 {[%clk 0:00:02]}  Kg7 {[%clk 0:00:36]} 39. Bc2 {[%clk 0:00:03]}  Kf6 {[%clk 0:00:37]} 40. Rd1 {[%clk 0:00:03]}  h2 {[%clk 0:00:35]} 41. Rh1 {[%clk 0:00:03]}  Rh8 {[%clk 0:00:35]} 42. Bb3 {[%clk 0:00:03]}  c5 {[%clk 0:00:34]} 43. bxc5 {[%clk 0:00:02]}  bxc5 {[%clk 0:00:35]} 44. Ba4 {[%clk 0:00:03]}  Ne6 {[%clk 0:00:30]} 45. Bc6 {[%clk 0:00:02]}  f4+ {[%clk 0:00:30]} 46. Kd2 {[%clk 0:00:02]}  Nc7 {[%clk 0:00:26]} 47. Bb7 {[%clk 0:00:02]}  Ne8 {[%clk 0:00:24]} 48. Kc3 {[%clk 0:00:02]}  Nd6 {[%clk 0:00:25]} 49. Bd5 {[%clk 0:00:02]}  Nf5 {[%clk 0:00:24]} 50. Kb3 {[%clk 0:00:02]}  Nd4+ {[%clk 0:00:21]} 51. Ka4 {[%clk 0:00:02]}  Ke7 {[%clk 0:00:20]} 52. Ka5 {[%clk 0:00:03]}  Kd6 {[%clk 0:00:20]} 53. Be4 {[%clk 0:00:03]}  Rh3 {[%clk 0:00:18]} 54. Bd5 {[%clk 0:00:03]}  Ke7 {[%clk 0:00:16]} 55. Be4 {[%clk 0:00:03]}  Kd6 {[%clk 0:00:13]} 56. Bd5 {[%clk 0:00:04]}  Nb3+ {[%clk 0:00:07]} 57. Kb5 {[%clk 0:00:04]}  Nc1 {[%clk 0:00:07]} 58. Ka5 {[%clk 0:00:02]}  Nd3 {[%clk 0:00:07]} 59. Rd1 {[%clk 0:00:01]}  Nxf2 {[%clk 0:00:07]} 60. Rd2 {[%clk 0:00:01]}  h1=Q {[%clk 0:00:08]} 61. Be4+ {[%clk 0:00:02]}  Ke7 {[%clk 0:00:07]} 62. Rxf2 {[%clk 0:00:02]}  Qe1+ {[%clk 0:00:08]} 63. Kb5 {[%clk 0:00:02]}  Qxf2 {[%clk 0:00:08]} 64. Kc6 {[%clk 0:00:03]}  Qd4 {[%clk 0:00:09]} 65. Kb7 {[%clk 0:00:03]}  Rh6 {[%clk 0:00:10]} 66. Kxa7 {[%clk 0:00:03]}  Qd6 {[%clk 0:00:11]} 67. Bb7 {[%clk 0:00:03]}  Qb6+ {[%clk 0:00:11]} 0-1


[Site "https://www.chess.com"]

[Event "Titled Tuesday Blitz May 31 Late 2022"]
[White "Deviprasath, Sharvesh"]
[Black "Souleidis, Georgios"]
[WhiteFideId "30938228"]
[BlackFideId "4206827"]
[WhiteElo "2102"]
[BlackElo "2401"]
[Result "0-1"]
[Round "03"]
[TimeControl "180+1"]
[Date "2022.06.01"]
[WhiteClock "0:00:10"]
[BlackClock "0:00:09"]

1. d4 {[%clk 0:03:00]}  Nf6 {[%clk 0:02:56]} 2. c4 {[%clk 0:03:01]}  g6 {[%clk 0:02:56]} 3. Nc3 {[%clk 0:03:00]}  Bg7 {[%clk 0:02:56]} 4. Nf3 {[%clk 0:02:47]}  O-O {[%clk 0:02:56]} 5. Bg5 {[%clk 0:02:28]}  c5 {[%clk 0:02:53]} 6. d5 {[%clk 0:02:27]}  d6 {[%clk 0:02:52]} 7. Qd2 {[%clk 0:02:15]}  b5 {[%clk 0:02:34]} 8. cxb5 {[%clk 0:02:06]}  a6 {[%clk 0:02:34]} 9. e4 {[%clk 0:02:03]}  Bg4 {[%clk 0:02:19]} 10. h4 {[%clk 0:02:00]}  Qb6 {[%clk 0:02:01]} 11. a4 {[%clk 0:01:52]}  axb5 {[%clk 0:02:00]} 12. Bxb5 {[%clk 0:01:53]}  Na6 {[%clk 0:01:57]} 13. Bh6 {[%clk 0:01:50]}  Nc7 {[%clk 0:01:42]} 14. Bxg7 {[%clk 0:01:28]}  Kxg7 {[%clk 0:01:40]} 15. O-O {[%clk 0:01:28]}  Nxb5 {[%clk 0:01:27]} 16. axb5 {[%clk 0:01:29]}  Bd7 {[%clk 0:01:05]} 17. Qe2 {[%clk 0:01:24]}  Rfb8 {[%clk 0:00:41]} 18. Rxa8 {[%clk 0:01:15]}  Rxa8 {[%clk 0:00:41]} 19. Re1 {[%clk 0:00:43]}  Rb8 {[%clk 0:00:39]} 20. e5 {[%clk 0:00:29]}  Ng8 {[%clk 0:00:39]} 21. Qe3 {[%clk 0:00:26]}  Bxb5 {[%clk 0:00:38]} 22. exd6 {[%clk 0:00:14]}  exd6 {[%clk 0:00:38]} 23. Ne4 {[%clk 0:00:13]}  Re8 {[%clk 0:00:19]} 24. Qc3+ {[%clk 0:00:13]}  f6 {[%clk 0:00:19]} 25. Nfg5 {[%clk 0:00:12]}  Bd7 {[%clk 0:00:18]} 26. h5 {[%clk 0:00:11]}  Qb4 {[%clk 0:00:16]} 27. h6+ {[%clk 0:00:09]}  Kxh6 {[%clk 0:00:16]} 28. Ne6 {[%clk 0:00:06]}  Qxc3 {[%clk 0:00:14]} 29. Nxc3 {[%clk 0:00:05]}  Bxe6 {[%clk 0:00:14]} 30. dxe6 {[%clk 0:00:06]}  Ne7 {[%clk 0:00:14]} 31. Ne4 {[%clk 0:00:03]}  Rd8 {[%clk 0:00:11]} 32. Nxf6 {[%clk 0:00:03]}  Kg7 {[%clk 0:00:11]} 33. Ng4 {[%clk 0:00:03]}  d5 {[%clk 0:00:11]} 34. Ne3 {[%clk 0:00:03]}  d4 {[%clk 0:00:11]} 35. Nc4 {[%clk 0:00:04]}  Kf6 {[%clk 0:00:10]} 36. Rd1 {[%clk 0:00:04]}  Kxe6 {[%clk 0:00:10]} 37. Kf1 {[%clk 0:00:05]}  Nc6 {[%clk 0:00:09]} 38. Ke2 {[%clk 0:00:05]}  Kd5 {[%clk 0:00:09]} 39. Ne3+ {[%clk 0:00:05]}  Ke4 {[%clk 0:00:09]} 40. Nc2 {[%clk 0:00:06]}  Nb4 {[%clk 0:00:09]} 41. f3+ {[%clk 0:00:07]}  Kd5 {[%clk 0:00:08]} 42. Nxb4+ {[%clk 0:00:08]}  cxb4 {[%clk 0:00:09]} 43. Kd3 {[%clk 0:00:08]}  Rc8 {[%clk 0:00:08]} 44. Ra1 {[%clk 0:00:09]}  Rc5 {[%clk 0:00:08]} 45. Ra8 {[%clk 0:00:09]}  Rc1 {[%clk 0:00:08]} 46. Rd8+ {[%clk 0:00:09]}  Ke5 {[%clk 0:00:08]} 47. Re8+ {[%clk 0:00:10]}  Kf6 {[%clk 0:00:09]} 48. Kxd4 {[%clk 0:00:10]}  Rg1 {[%clk 0:00:09]} 49. Re2 {[%clk 0:00:09]}  Rc1 {[%clk 0:00:08]} 50. Kd3 {[%clk 0:00:09]}  Kf5 {[%clk 0:00:09]} 51. Rc2 {[%clk 0:00:09]}  Rxc2 {[%clk 0:00:06]} 52. Kxc2 {[%clk 0:00:10]}  Kf4 {[%clk 0:00:07]} 53. Kb3 {[%clk 0:00:11]}  Kg3 {[%clk 0:00:07]} 54. Kxb4 {[%clk 0:00:11]}  Kxg2 {[%clk 0:00:08]} 55. Kc3 {[%clk 0:00:12]}  h5 {[%clk 0:00:09]} 56. b4 {[%clk 0:00:13]}  h4 {[%clk 0:00:10]} 57. b5 {[%clk 0:00:13]}  h3 {[%clk 0:00:11]} 58. b6 {[%clk 0:00:14]}  h2 {[%clk 0:00:12]} 59. b7 {[%clk 0:00:15]}  h1=Q {[%clk 0:00:12]} 60. b8=Q {[%clk 0:00:15]}  Qc1+ {[%clk 0:00:12]} 61. Kd3 {[%clk 0:00:15]}  Qf1+ {[%clk 0:00:11]} 62. Kd4 {[%clk 0:00:13]}  Qf2+ {[%clk 0:00:11]} 63. Kc4 {[%clk 0:00:11]}  Qe2+ {[%clk 0:00:11]} 64. Kd4 {[%clk 0:00:11]}  Qd2+ {[%clk 0:00:11]} 65. Ke4 {[%clk 0:00:11]}  Qe2+ {[%clk 0:00:11]} 66. Kd4 {[%clk 0:00:12]}  Qxf3 {[%clk 0:00:10]} 67. Qg8 {[%clk 0:00:10]}  Qf4+ {[%clk 0:00:09]} 68. Kd5 {[%clk 0:00:10]}  g5 {[%clk 0:00:09]} 69. Kc6 {[%clk 0:00:10]}  g4 {[%clk 0:00:08]} 70. Qa2+ {[%clk 0:00:10]}  Qf2 {[%clk 0:00:08]} 71. Qb1 {[%clk 0:00:10]}  Qf3+ {[%clk 0:00:09]} 72. Kc5 {[%clk 0:00:09]}  g3 {[%clk 0:00:09]} 73. Kd4 {[%clk 0:00:09]}  Qf1 {[%clk 0:00:08]} 74. Qc2+ {[%clk 0:00:09]}  Qf2+ {[%clk 0:00:09]} 75. Qxf2+ {[%clk 0:00:10]}  gxf2 {[%clk 0:00:09]} 0-1


[Site "https://www.chess.com"]

[Event "Titled Tuesday Blitz May 31 Late 2022"]
[White "Donchenko, Alexander"]
[Black "Lehtosaari, Mauri"]
[WhiteFideId "24603295"]
[BlackFideId "501999"]
[WhiteElo "2572"]
[BlackElo "2444"]
[Result "1-0"]
[Round "03"]
[TimeControl "180+1"]
[Date "2022.05.31"]
[WhiteClock "0:02:38"]
[BlackClock "0:00:53"]

1. d4 {[%clk 0:02:56]}  d5 {[%clk 0:02:59]} 2. c4 {[%clk 0:02:56]}  c6 {[%clk 0:02:59]} 3. Nf3 {[%clk 0:02:57]}  Nf6 {[%clk 0:03:00]} 4. Qc2 {[%clk 0:02:58]}  dxc4 {[%clk 0:02:58]} 5. Qxc4 {[%clk 0:02:59]}  Bf5 {[%clk 0:02:58]} 6. g3 {[%clk 0:02:59]}  e6 {[%clk 0:02:58]} 7. Bg2 {[%clk 0:02:59]}  Be7 {[%clk 0:02:57]} 8. O-O {[%clk 0:03:00]}  O-O {[%clk 0:02:58]} 9. e3 {[%clk 0:03:00]}  Nbd7 {[%clk 0:02:58]} 10. Qe2 {[%clk 0:03:01]}  h6 {[%clk 0:02:47]} 11. Rd1 {[%clk 0:03:00]}  Rc8 {[%clk 0:02:42]} 12. Nc3 {[%clk 0:03:00]}  Ne4 {[%clk 0:02:41]} 13. Bd2 {[%clk 0:03:00]}  Ndf6 {[%clk 0:02:38]} 14. Be1 {[%clk 0:02:59]}  Nd5 {[%clk 0:02:33]} 15. Ne5 {[%clk 0:02:56]}  Nexc3 {[%clk 0:02:25]} 16. bxc3 {[%clk 0:02:56]}  Bh7 {[%clk 0:02:23]} 17. c4 {[%clk 0:02:56]}  Nf6 {[%clk 0:02:21]} 18. c5 {[%clk 0:02:52]}  Nd5 {[%clk 0:01:59]} 19. a4 {[%clk 0:02:49]}  a5 {[%clk 0:01:50]} 20. Nc4 {[%clk 0:02:48]}  Nb4 {[%clk 0:01:45]} 21. Qb2 {[%clk 0:02:46]}  Nc2 {[%clk 0:01:11]} 22. Bxa5 {[%clk 0:02:44]}  Qe8 {[%clk 0:01:05]} 23. Rac1 {[%clk 0:02:43]}  Ra8 {[%clk 0:00:59]} 24. e4 {[%clk 0:02:39]}  Nxd4 {[%clk 0:00:53]} 25. Qxd4 {[%clk 0:02:38]} 1-0


[Site "https://www.chess.com"]

[Event "Titled Tuesday Blitz May 31 Late 2022"]
[White "Eljanov, Pavel"]
[Black "Xiong, Jeffery"]
[WhiteFideId "14102951"]
[BlackFideId "2047640"]
[WhiteElo "2601"]
[BlackElo "2727"]
[Result "1/2-1/2"]
[Round "03"]
[TimeControl "180+1"]
[Date "2022.05.31"]
[WhiteClock "0:00:10"]
[BlackClock "0:00:06"]

1. Nf3 {[%clk 0:03:00]}  c5 {[%clk 0:02:59]} 2. c4 {[%clk 0:03:00]}  Nf6 {[%clk 0:02:59]} 3. Nc3 {[%clk 0:02:57]}  d5 {[%clk 0:03:00]} 4. cxd5 {[%clk 0:02:58]}  Nxd5 {[%clk 0:03:01]} 5. e3 {[%clk 0:02:57]}  e6 {[%clk 0:03:01]} 6. Bc4 {[%clk 0:02:57]}  Nf6 {[%clk 0:02:59]} 7. O-O {[%clk 0:02:55]}  a6 {[%clk 0:03:00]} 8. a4 {[%clk 0:02:52]}  Nc6 {[%clk 0:03:00]} 9. d4 {[%clk 0:02:53]}  Qc7 {[%clk 0:03:01]} 10. Qe2 {[%clk 0:02:50]}  Bd6 {[%clk 0:03:01]} 11. dxc5 {[%clk 0:02:47]}  Bxc5 {[%clk 0:03:02]} 12. h3 {[%clk 0:02:46]}  O-O {[%clk 0:03:02]} 13. e4 {[%clk 0:02:46]}  Nd7 {[%clk 0:03:02]} 14. Be3 {[%clk 0:02:41]}  Bxe3 {[%clk 0:02:59]} 15. Qxe3 {[%clk 0:02:41]}  Nb4 {[%clk 0:02:59]} 16. Qe2 {[%clk 0:02:28]}  b6 {[%clk 0:02:59]} 17. Rac1 {[%clk 0:02:18]}  Nc5 {[%clk 0:02:58]} 18. e5 {[%clk 0:02:14]}  Bb7 {[%clk 0:02:56]} 19. Rfd1 {[%clk 0:01:49]}  Rad8 {[%clk 0:02:51]} 20. Qe3 {[%clk 0:01:34]}  h6 {[%clk 0:02:42]} 21. Nd4 {[%clk 0:01:29]}  Nd7 {[%clk 0:02:31]} 22. Na2 {[%clk 0:00:48]}  Nxe5 {[%clk 0:01:04]} 23. Bxa6 {[%clk 0:00:39]}  Nbc6 {[%clk 0:00:52]} 24. Bxb7 {[%clk 0:00:32]}  Qxb7 {[%clk 0:00:52]} 25. Nxc6 {[%clk 0:00:32]}  Nxc6 {[%clk 0:00:53]} 26. Qe4 {[%clk 0:00:29]}  Rxd1+ {[%clk 0:00:22]} 27. Rxd1 {[%clk 0:00:30]}  Na5 {[%clk 0:00:23]} 28. Qxb7 {[%clk 0:00:30]}  Nxb7 {[%clk 0:00:24]} 29. b4 {[%clk 0:00:28]}  Ra8 {[%clk 0:00:16]} 30. Nc3 {[%clk 0:00:28]}  Kf8 {[%clk 0:00:14]} 31. Rd7 {[%clk 0:00:27]}  Nd8 {[%clk 0:00:14]} 32. Rd6 {[%clk 0:00:24]}  Rc8 {[%clk 0:00:15]} 33. Nb5 {[%clk 0:00:23]}  Nc6 {[%clk 0:00:15]} 34. Rd7 {[%clk 0:00:23]}  Nxb4 {[%clk 0:00:14]} 35. Nd6 {[%clk 0:00:22]}  Rc1+ {[%clk 0:00:13]} 36. Kh2 {[%clk 0:00:22]}  f5 {[%clk 0:00:14]} 37. Rf7+ {[%clk 0:00:12]}  Kg8 {[%clk 0:00:14]} 38. Re7 {[%clk 0:00:13]}  Re1 {[%clk 0:00:14]} 39. Rb7 {[%clk 0:00:10]}  Nd5 {[%clk 0:00:14]} 40. Nc4 {[%clk 0:00:08]}  Re2 {[%clk 0:00:08]} 41. Nxb6 {[%clk 0:00:09]}  Rxf2 {[%clk 0:00:02]} 42. Nxd5 {[%clk 0:00:08]}  exd5 {[%clk 0:00:03]} 43. Rb5 {[%clk 0:00:08]}  Rd2 {[%clk 0:00:03]} 44. a5 {[%clk 0:00:08]}  Kf7 {[%clk 0:00:04]} 45. a6 {[%clk 0:00:08]}  Ra2 {[%clk 0:00:03]} 46. Rxd5 {[%clk 0:00:07]}  Ke6 {[%clk 0:00:04]} 47. Rb5 {[%clk 0:00:07]}  Rxa6 {[%clk 0:00:04]} 48. Kg3 {[%clk 0:00:07]}  g5 {[%clk 0:00:05]} 49. Kh2 {[%clk 0:00:07]}  Kf6 {[%clk 0:00:05]} 50. Rb8 {[%clk 0:00:07]}  Kg7 {[%clk 0:00:05]} 51. Rb5 {[%clk 0:00:07]}  Kg6 {[%clk 0:00:06]} 52. Rb4 {[%clk 0:00:07]}  Re6 {[%clk 0:00:06]} 53. Kg1 {[%clk 0:00:07]}  h5 {[%clk 0:00:04]} 54. Kf2 {[%clk 0:00:07]}  h4 {[%clk 0:00:04]} 55. Rb5 {[%clk 0:00:08]}  Kf6 {[%clk 0:00:04]} 56. Rc5 {[%clk 0:00:08]}  Re5 {[%clk 0:00:05]} 57. Rc6+ {[%clk 0:00:08]}  Re6 {[%clk 0:00:05]} 58. Rc5 {[%clk 0:00:09]}  Rd6 {[%clk 0:00:06]} 59. Rb5 {[%clk 0:00:09]}  Ke6 {[%clk 0:00:07]} 60. Ra5 {[%clk 0:00:09]}  Rd5 {[%clk 0:00:08]} 61. Ra8 {[%clk 0:00:09]}  Ke5 {[%clk 0:00:08]} 62. Ra4 {[%clk 0:00:09]}  Rd4 {[%clk 0:00:09]} 63. Ra2 {[%clk 0:00:09]}  Kf4 {[%clk 0:00:09]} 64. Rb2 {[%clk 0:00:09]}  Re4 {[%clk 0:00:09]} 65. Rc2 {[%clk 0:00:09]}  Ke5 {[%clk 0:00:08]} 66. Ra2 {[%clk 0:00:09]}  Rd4 {[%clk 0:00:07]} 67. Rb2 {[%clk 0:00:09]}  Ke4 {[%clk 0:00:07]} 68. Re2+ {[%clk 0:00:10]}  Kf4 {[%clk 0:00:08]} 69. Ra2 {[%clk 0:00:11]}  Ke4 {[%clk 0:00:03]} 70. Re2+ {[%clk 0:00:10]}  Kd3 {[%clk 0:00:04]} 71. Re8 {[%clk 0:00:10]}  Kc4 {[%clk 0:00:03]} 72. Rg8 {[%clk 0:00:10]}  g4 {[%clk 0:00:03]} 73. hxg4 {[%clk 0:00:10]}  fxg4 {[%clk 0:00:04]} 74. Rh8 {[%clk 0:00:10]}  g3+ {[%clk 0:00:05]} 75. Kf3 {[%clk 0:00:10]}  Kd3 {[%clk 0:00:05]} 76. Re8 {[%clk 0:00:09]}  Kd2 {[%clk 0:00:05]} 77. Re2+ {[%clk 0:00:09]}  Kd1 {[%clk 0:00:05]} 78. Re8 {[%clk 0:00:09]}  Rd2 {[%clk 0:00:04]} 79. Kg4 {[%clk 0:00:09]}  Rxg2 {[%clk 0:00:04]} 80. Kxh4 {[%clk 0:00:09]}  Rg1 {[%clk 0:00:04]} 81. Kh3 {[%clk 0:00:09]}  Kd2 {[%clk 0:00:04]} 82. Rg8 {[%clk 0:00:09]}  Ke2 {[%clk 0:00:05]} 83. Rxg3 {[%clk 0:00:09]}  Rxg3+ {[%clk 0:00:06]} 84. Kxg3 {[%clk 0:00:10]} 1/2-1/2


[Site "https://www.chess.com"]

[Event "Titled Tuesday Blitz May 31 Late 2022"]
[White "Goncalves, Ivan Mesquita V"]
[Black "Zhigalko, Sergei"]
[WhiteFideId "2114224"]
[BlackFideId "13502956"]
[WhiteElo "2299"]
[BlackElo "2662"]
[Result "0-1"]
[Round "03"]
[TimeControl "180+1"]
[Date "2022.05.31"]
[WhiteClock "0:00:18"]
[BlackClock "0:00:04"]

1. d4 {[%clk 0:03:00]}  Nf6 {[%clk 0:02:57]} 2. Nf3 {[%clk 0:03:01]}  e6 {[%clk 0:02:58]} 3. Bf4 {[%clk 0:03:01]}  b6 {[%clk 0:02:57]} 4. e3 {[%clk 0:03:01]}  Bb7 {[%clk 0:02:57]} 5. h3 {[%clk 0:03:01]}  Bd6 {[%clk 0:02:55]} 6. Bxd6 {[%clk 0:03:01]}  cxd6 {[%clk 0:02:56]} 7. Be2 {[%clk 0:03:01]}  O-O {[%clk 0:02:56]} 8. O-O {[%clk 0:03:02]}  d5 {[%clk 0:02:56]} 9. Nbd2 {[%clk 0:03:01]}  Nc6 {[%clk 0:02:55]} 10. c4 {[%clk 0:03:01]}  Qe7 {[%clk 0:02:54]} 11. Rc1 {[%clk 0:03:00]}  Rfc8 {[%clk 0:02:54]} 12. a3 {[%clk 0:02:57]}  h6 {[%clk 0:02:39]} 13. Re1 {[%clk 0:02:46]}  d6 {[%clk 0:02:38]} 14. b4 {[%clk 0:02:35]}  dxc4 {[%clk 0:02:37]} 15. Nxc4 {[%clk 0:02:35]}  b5 {[%clk 0:02:24]} 16. Ncd2 {[%clk 0:02:28]}  a6 {[%clk 0:02:23]} 17. Nb3 {[%clk 0:02:23]}  Rc7 {[%clk 0:02:23]} 18. Nfd2 {[%clk 0:02:17]}  Rac8 {[%clk 0:02:21]} 19. Bf3 {[%clk 0:02:16]}  e5 {[%clk 0:02:14]} 20. d5 {[%clk 0:02:02]}  Nb8 {[%clk 0:02:07]} 21. e4 {[%clk 0:01:59]}  Rxc1 {[%clk 0:02:01]} 22. Nxc1 {[%clk 0:02:00]}  Rc3 {[%clk 0:01:54]} 23. Ncb3 {[%clk 0:01:55]}  Qc7 {[%clk 0:01:43]} 24. Qa1 {[%clk 0:01:52]}  Bc8 {[%clk 0:01:29]} 25. Rc1 {[%clk 0:01:46]}  Rxc1+ {[%clk 0:01:28]} 26. Qxc1 {[%clk 0:01:47]}  Qxc1+ {[%clk 0:01:28]} 27. Nxc1 {[%clk 0:01:48]}  Nbd7 {[%clk 0:01:27]} 28. Ncb3 {[%clk 0:01:43]}  Nb6 {[%clk 0:01:27]} 29. Be2 {[%clk 0:01:42]}  Kf8 {[%clk 0:01:17]} 30. h4 {[%clk 0:01:38]}  Ng8 {[%clk 0:01:01]} 31. f3 {[%clk 0:01:35]}  f5 {[%clk 0:00:59]} 32. Kf2 {[%clk 0:01:31]}  Nf6 {[%clk 0:00:58]} 33. Bd3 {[%clk 0:01:29]}  Ke7 {[%clk 0:00:48]} 34. g3 {[%clk 0:01:23]}  fxe4 {[%clk 0:00:38]} 35. fxe4 {[%clk 0:01:22]}  Bg4 {[%clk 0:00:37]} 36. Na5 {[%clk 0:01:19]}  Kd7 {[%clk 0:00:35]} 37. Nc6 {[%clk 0:01:17]}  Kc7 {[%clk 0:00:27]} 38. Na5 {[%clk 0:01:10]}  Bd1 {[%clk 0:00:24]} 39. Be2 {[%clk 0:01:00]}  Bc2 {[%clk 0:00:11]} 40. Ke3 {[%clk 0:00:54]}  g5 {[%clk 0:00:10]} 41. Nc6 {[%clk 0:00:49]}  Nfxd5+ {[%clk 0:00:08]} 42. exd5 {[%clk 0:00:45]}  Nxd5+ {[%clk 0:00:09]} 43. Kf3 {[%clk 0:00:25]}  Kxc6 {[%clk 0:00:10]} 44. Kg4 {[%clk 0:00:25]}  Nf6+ {[%clk 0:00:09]} 45. Kf3 {[%clk 0:00:25]}  gxh4 {[%clk 0:00:09]} 46. gxh4 {[%clk 0:00:25]}  d5 {[%clk 0:00:08]} 47. Bf1 {[%clk 0:00:23]}  Kd6 {[%clk 0:00:08]} 48. Bh3 {[%clk 0:00:23]}  Kc7 {[%clk 0:00:06]} 49. Ke3 {[%clk 0:00:22]}  Be4 {[%clk 0:00:05]} 50. Ke2 {[%clk 0:00:20]}  d4 {[%clk 0:00:05]} 51. Nf1 {[%clk 0:00:18]}  Bg6 {[%clk 0:00:04]} 52. Ng3 {[%clk 0:00:18]}  e4 {[%clk 0:00:04]} 53. h5 {[%clk 0:00:18]}  Nxh5 {[%clk 0:00:04]} 0-1


[Site "https://www.chess.com"]

[Event "Titled Tuesday Blitz May 31 Late 2022"]
[White "Harsh Suresh"]
[Black "Sjugirov, Sanan"]
[WhiteFideId "45018464"]
[BlackFideId "4189302"]
[WhiteElo "2020"]
[BlackElo "2602"]
[Result "0-1"]
[Round "03"]
[TimeControl "180+1"]
[Date "2022.05.31"]
[WhiteClock "0:00:03"]
[BlackClock "0:00:07"]

1. e4 {[%clk 0:03:00]}  g6 {[%clk 0:03:00]} 2. d4 {[%clk 0:02:59]}  d6 {[%clk 0:03:01]} 3. c4 {[%clk 0:02:55]}  Bg7 {[%clk 0:03:00]} 4. Nc3 {[%clk 0:02:55]}  c5 {[%clk 0:02:55]} 5. Nf3 {[%clk 0:02:52]}  Nc6 {[%clk 0:02:49]} 6. Be3 {[%clk 0:02:44]}  Bg4 {[%clk 0:02:46]} 7. d5 {[%clk 0:02:39]}  Nd4 {[%clk 0:02:39]} 8. Be2 {[%clk 0:02:28]}  Bxf3 {[%clk 0:02:18]} 9. Bxf3 {[%clk 0:01:47]}  Qb6 {[%clk 0:02:11]} 10. Qd2 {[%clk 0:01:43]}  Nxf3+ {[%clk 0:02:04]} 11. gxf3 {[%clk 0:01:43]}  Nf6 {[%clk 0:02:04]} 12. O-O-O {[%clk 0:01:20]}  O-O {[%clk 0:01:59]} 13. h4 {[%clk 0:01:16]}  Nh5 {[%clk 0:01:47]} 14. Bh6 {[%clk 0:01:12]}  Qa6 {[%clk 0:01:33]} 15. Bxg7 {[%clk 0:01:05]}  Kxg7 {[%clk 0:01:34]} 16. b3 {[%clk 0:00:53]}  Qa3+ {[%clk 0:01:16]} 17. Kb1 {[%clk 0:00:51]}  a6 {[%clk 0:01:10]} 18. f4 {[%clk 0:00:38]}  b5 {[%clk 0:00:47]} 19. cxb5 {[%clk 0:00:38]}  Qb4 {[%clk 0:00:44]} 20. bxa6 {[%clk 0:00:33]}  Rxa6 {[%clk 0:00:44]} 21. f5 {[%clk 0:00:22]}  Rfa8 {[%clk 0:00:37]} 22. fxg6 {[%clk 0:00:22]}  hxg6 {[%clk 0:00:37]} 23. Rh3 {[%clk 0:00:15]}  Kg8 {[%clk 0:00:19]} 24. Qb2 {[%clk 0:00:14]}  c4 {[%clk 0:00:17]} 25. Rd4 {[%clk 0:00:13]}  Rc8 {[%clk 0:00:12]} 26. Qe2 {[%clk 0:00:10]}  Nf4 {[%clk 0:00:10]} 27. Qe3 {[%clk 0:00:04]}  Nxh3 {[%clk 0:00:10]} 28. Qxh3 {[%clk 0:00:05]}  Raa8 {[%clk 0:00:08]} 29. h5 {[%clk 0:00:04]}  Qb6 {[%clk 0:00:08]} 30. hxg6 {[%clk 0:00:04]}  fxg6 {[%clk 0:00:08]} 31. Qe6+ {[%clk 0:00:04]}  Kf8 {[%clk 0:00:08]} 32. Qxg6 {[%clk 0:00:04]}  Qxd4 {[%clk 0:00:07]} 33. Qh6+ {[%clk 0:00:03]}  Qg7 {[%clk 0:00:07]} 34. Qf4+ {[%clk 0:00:03]}  Qf6 {[%clk 0:00:08]} 35. Qe3 {[%clk 0:00:02]}  cxb3 {[%clk 0:00:08]} 36. Nb5 {[%clk 0:00:03]}  bxa2# {[%clk 0:00:07]} 0-1


[Site "https://www.chess.com"]